fUSD/lending_fUSD_20240327
["ID","MTS","AMOUNT","RATE_DAILY","PERIOD"]
[320805307,1711561960546,-516.23,0.00059726,120]
[320805308,1711561960556,-833.36,0.00059726,120]
[320805309,1711561960566,-2147.51,0.00059726,120]
[320805310,1711561960575,-1200.4,0.00059726,120]
[320805311,1711561960586,-6977.94,0.00059726,120]
[320805312,1711561960595,-4994.03,0.00059726,120]
[320805313,1711561960605,-1826.97,0.00059726,120]
[320805314,1711561960615,-1042.58,0.00059726,120]
[320805315,1711561960624,-818.62,0.00059726,120]
[320805316,1711561960634,-1312.03,0.00059726,120]
[320805317,1711561960644,-1814.79,0.00059726,120]
[320805318,1711561960654,-1730.09,0.00059726,120]
[320805319,1711561960664,-3092.64,0.00059726,120]
[320805320,1711561960673,-3331.35,0.00059726,120]
[320805321,1711561960682,-1629.06,0.00059726,120]
[320805322,1711561960692,-858.06,0.00059726,120]
[320805323,1711561960701,-1107.56,0.00059726,120]
[320805324,1711561960711,-1926.96,0.00059726,120]
[320805325,1711561960721,-5998.21,0.00059726,120]
[320805326,1711561960730,-1276.61,0.00059726,120]
[320805327,1711561960739,-1204.74,0.00059726,120]
[320805328,1711561960749,-978.47,0.00059726,120]
[320805329,1711561960758,-1112.11,0.00059726,120]
[320805330,1711561960768,-500.0,0.00059726,120]
[320805331,1711561960777,-5147.59,0.00059726,120]
[320805332,1711561960787,-1278.89,0.00059726,120]
[320805333,1711561960796,-210.0,0.0005973,30]
[320805334,1711561960805,-200.0,0.0005973,30]
[320805335,1711561960815,-208.0,0.0005973,30]
[320805336,1711561960825,-208.0,0.0005973,30]
[320805337,1711561960834,-150.0,0.00059761,120]
[320805338,1711561960844,-151.032721,0.00059798,117]
[320805339,1711561960854,-289.41,0.000598,40]
[320805340,1711561960863,-152.91494694,0.00059816,120]
[320805341,1711561960873,-315.3958168,0.0005982,2]
[320805342,1711561960884,-154.13724489,0.00059895,120]
[320805343,1711561960898,-215.77523179,0.00059899,120]
[320805344,1711561960908,-150.0,0.00059899,120]
[320805345,1711561960919,-150.0,0.00059899,120]
[320805346,1711561960928,-150.0,0.00059899,120]
[320805347,1711561960938,-263.01495483,0.00059899,120]
[320805348,1711561960947,-150.0,0.00059899,120]
[320805349,1711561960957,-150.0,0.00059899,120]
[320805350,1711561960968,-150.0,0.00059899,120]
[320805351,1711561960979,-150.0,0.00059899,120]
[320805352,1711561960989,-150.19866873,0.00059927,82]
[320805353,1711561960999,-154.75091202,0.00059943,120]
[320805354,1711561961009,-38232.19424494,0.00059958,15]
[320805355,1711561961019,-12015.88066317,0.00059958,15]
[320805356,1711561961029,-4557.78792127,0.00059958,15]
[320805357,1711561961039,-7504.13739552,0.00059958,15]
[320805358,1711561961049,-4828.52960645,0.00059958,15]
[320805359,1711561961058,-1867.10260307,0.00059958,15]
[320805360,1711561961068,-154.75091202,0.00059961,120]
[320805361,1711561961078,-215.77523179,0.00059966,120]
[320805362,1711561961087,-200.0,0.00059987,2]
[320805363,1711561961097,-1000.0,0.00059999,90]
[320805364,1711561961106,-645.79291498,0.00059999,90]
[320805365,1711561961116,-150.0,0.00059999,120]
[320805366,1711561961126,-182.74142139,0.00059999,120]
[320805367,1711561961136,-522.2,0.00059999,120]
[320805368,1711561961145,-429.54298552,0.00059999,120]
[320805369,1711561961156,-1000.0,0.00059999,120]
[320805370,1711561961166,-631.01,0.00059999,120]
[320805371,1711561961175,-530.38,0.00059999,120]
[320805372,1711561961185,-517.87,0.00059999,120]
[320805373,1711561961195,-736.48,0.00059999,120]
[320805374,1711561961205,-500.0,0.00059999,120]
[320805375,1711561961215,-572.5,0.00059999,120]
[320805376,1711561961225,-827.53,0.00059999,120]
[320805377,1711561961234,-1149.15,0.00059999,120]
[320805378,1711561961244,-683.71,0.00059999,120]
[320805379,1711561961253,-588.63,0.00059999,120]
[320805380,1711561961263,-1653.05,0.00059999,120]
[320805381,1711561961274,-721.85,0.00059999,120]
[320805382,1711561961284,-1272.4,0.00059999,120]
[320805383,1711561961293,-758.1,0.00059999,120]
[320805384,1711561961303,-751.34,0.00059999,120]
[320805385,1711561961313,-1106.66,0.00059999,120]
[320805386,1711561961322,-667.72,0.00059999,120]
[320805387,1711561961332,-546.53,0.00059999,120]
[320805388,1711561961341,-525.52,0.00059999,120]
[320805389,1711561961352,-1650.28,0.00059999,120]
[320805390,1711561961362,-1208.64,0.00059999,120]
[320805391,1711561961372,-1675.07,0.00059999,120]
[320805392,1711561961383,-385.00965397,0.00059999,60]
[320805393,1711561961393,-875.05,0.00059999,120]
[320805394,1711561961404,-896.37,0.00059999,120]
[320805395,1711561961415,-526.04,0.00059999,120]
[320805396,1711561961425,-774.53,0.00059999,120]
[320805397,1711561961434,-623.96,0.00059999,120]
[320805398,1711561961444,-1500.57,0.00059999,120]
[320805399,1711561961453,-1293.46,0.00059999,120]
[320805400,1711561961464,-663.1,0.00059999,120]
[320805401,1711561961473,-591.57,0.00059999,120]
[320805402,1711561961483,-540.2,0.00059999,120]
[320805403,1711561961492,-826.04,0.00059999,120]
[320805404,1711561961502,-802.7,0.00059999,120]
[320805405,1711561961512,-551.8,0.00059999,120]
[320805406,1711561961521,-792.47,0.00059999,120]
[320805407,1711561961532,-507.03,0.00059999,120]
[320805408,1711561961545,-814.62,0.00059999,120]
[320805409,1711561961554,-519.12,0.00059999,120]
[320805410,1711561961564,-553.94,0.00059999,120]
[320805411,1711561961574,-1363.26,0.00059999,120]
[320805412,1711561961584,-681.15,0.00059999,120]
[320805413,1711561961594,-1247.0,0.00059999,120]
[320805414,1711561961604,-828.0,0.00059999,120]
[320805415,1711561961614,-691.03,0.00059999,120]
[320805416,1711561961624,-907.95,0.00059999,120]
[320805417,1711561961634,-1943.45,0.00059999,120]
[320805418,1711561961645,-1363.72,0.00059999,120]
[320805419,1711561961654,-203.49541964,0.00059999,120]
[320805420,1711561961665,-1264.66,0.00059999,120]
[320805421,1711561961674,-518.11,0.00059999,120]
[320805422,1711561961684,-785.6,0.00059999,120]
[320805423,1711561961694,-541.5689669,0.00059999,120]
[320805424,1711561961704,-533.96,0.00059999,120]
[320805425,1711561961714,-610.76,0.00059999,120]
[320805426,1711561961723,-601.27,0.00059999,120]
[320805427,1711561961734,-619.35,0.00059999,120]
[320805428,1711561961743,-723.32,0.00059999,120]
[320805429,1711561961753,-658.94,0.00059999,30]
[320805430,1711561961764,-604.53,0.00059999,120]
[320805431,1711561961775,-627.6,0.00059999,120]
[320805432,1711561961784,-541.49,0.00059999,120]
[320805433,1711561961794,-525.41,0.00059999,120]
[320805434,1711561961805,-1259.13,0.00059999,120]
[320805435,1711561961815,-500.0,0.00059999,120]
[320805436,1711561961826,-961.87,0.00059999,120]
[320805437,1711561961837,-1118.41,0.00059999,120]
[320805438,1711561961847,-1285.86,0.00059999,120]
[320805439,1711561961857,-653.33,0.00059999,120]
[320805440,1711561961867,-515.61,0.00059999,120]
[320805441,1711561961879,-881.34,0.00059999,120]
[320805442,1711561961892,-594.96,0.00059999,120]
[320805443,1711561961905,-635.55,0.00059999,120]
[320805444,1711561961916,-172.86663432,0.00059999,120]
[320805445,1711561961926,-569.07,0.00059999,120]
[320805446,1711561961936,-513.81,0.00059999,120]
[320805447,1711561961946,-885.2,0.00059999,120]
[320805448,1711561961956,-507.05,0.00059999,120]
[320805449,1711561961967,-345.9,0.00059999,120]
[320805450,1711561961977,-969.37,0.00059999,120]
[320805451,1711561961987,-712.96,0.00059999,120]
[320805452,1711561961998,-325.55044325,0.00059999,120]
[320805453,1711561962009,-607.67,0.00059999,120]
[320805454,1711561962020,-500.0,0.00059999,120]
[320805455,1711561962030,-572.09,0.00059999,120]
[320805456,1711561962041,-633.56,0.00059999,120]
[320805457,1711561962051,-1276.08,0.00059999,120]
[320805458,1711561962061,-743.04,0.00059999,120]
[320805459,1711561962072,-994.38,0.00059999,120]
[320805460,1711561962082,-1464.37,0.00059999,120]
[320805461,1711561962092,-1308.17,0.00059999,120]
[320805462,1711561962102,-1966.83,0.00059999,120]
[320805463,1711561962113,-1167.58,0.00059999,120]
[320805464,1711561962124,-882.23,0.00059999,120]
[320805465,1711561962135,-500.0,0.00059999,120]
[320805466,1711561962145,-939.99,0.00059999,120]
[320805467,1711561962156,-1680.42,0.00059999,120]
[320805468,1711561962166,-654.45,0.00059999,120]
[320805469,1711561962176,-1090.78,0.00059999,120]
[320805470,1711561962186,-2767.8,0.00059999,120]
[320805471,1711561962196,-5693.99,0.00059999,120]
[320805472,1711561962206,-631.11,0.00059999,120]
[320805473,1711561962216,-638.94,0.00059999,120]
[320805474,1711561962226,-1880.06,0.00059999,120]
[320805475,1711561962236,-3576.66,0.00059999,120]
[320805476,1711561962246,-1154.81,0.00059999,120]
[320805477,1711561962256,-597.69,0.00059999,120]
[320805478,1711561962268,-11680.99,0.00059999,120]
[320805479,1711561962277,-500.0,0.00059999,120]
[320805480,1711561962287,-820.32,0.00059999,120]
[320805481,1711561962296,-4891.01,0.00059999,120]
[320805482,1711561962306,-2266.19,0.00059999,120]
[320805483,1711561962315,-4319.88,0.00059999,120]
[320805484,1711561962324,-638.01,0.00059999,120]
[320805485,1711561962334,-1948.43,0.00059999,120]
[320805486,1711561962343,-594.89,0.00059999,120]
[320805487,1711561962353,-58191.63,0.00059999,120]
[320805488,1711561962363,-4872.06,0.00059999,120]
[320805489,1711561962372,-25819.15,0.00059999,120]
[320805490,1711561962382,-916.42,0.00059999,120]
[320805491,1711561962391,-672.12,0.00059999,120]
[320805492,1711561962401,-2822.64,0.00059999,120]
[320805493,1711561962411,-5739.01,0.00059999,120]
[320805494,1711561962421,-1773.91,0.00059999,120]
[320805495,1711561962431,-7896.21,0.00059999,120]
[320805496,1711561962441,-1599.36,0.00059999,120]
[320805497,1711561962450,-580.5,0.00059999,120]
[320805498,1711561962459,-702.31,0.00059999,120]
[320805499,1711561962469,-4077.6,0.00059999,120]
[320805500,1711561962478,-962.02,0.00059999,120]
[320805501,1711561962488,-1910.86,0.00059999,120]
[320805502,1711561962497,-993.68,0.00059999,120]
[320805503,1711561962507,-1981.61,0.00059999,120]
[320805504,1711561962517,-1310.9,0.00059999,120]
[320805505,1711561962527,-5861.79,0.00059999,120]
[320805506,1711561962536,-861.74,0.00059999,120]
[320805507,1711561962546,-3868.28,0.00059999,120]
[320805508,1711561962556,-4602.46,0.00059999,120]
[320805509,1711561962565,-2285.5,0.00059999,120]
[320805510,1711561962575,-7201.79,0.00059999,120]
[320805511,1711561962584,-2663.41,0.00059999,120]
[320805512,1711561962594,-1041.92,0.00059999,120]
[320805513,1711561962603,-2054.16,0.00059999,120]
[320805514,1711561962613,-18909.02,0.00059999,120]
[320805515,1711561962623,-1431.94,0.00059999,120]
[320805516,1711561962632,-1528.43,0.00059999,120]
[320805517,1711561962642,-1715.09,0.00059999,120]
[320805518,1711561962651,-543.42,0.00059999,120]
[320805519,1711561962663,-836.18,0.00059999,120]
[320805520,1711561962672,-2529.3,0.00059999,120]
[320805521,1711561962683,-1204.05,0.00059999,120]
[320805522,1711561962693,-882.15,0.00059999,120]
[320805523,1711561962702,-1890.07,0.00059999,120]
[320805524,1711561962712,-500.0,0.00059999,120]
[320805525,1711561962722,-1395.77,0.00059999,120]
[320805526,1711561962731,-22066.4,0.00059999,120]
[320805527,1711561962741,-9133.29,0.00059999,120]
[320805528,1711561962751,-3276.54,0.00059999,120]
[320805529,1711561962760,-3779.21,0.00059999,120]
[320805530,1711561963012,-1407.53,0.00059999,120]
[320805531,1711561963022,-505.39,0.00059999,120]
[320805532,1711561963032,-1780.21,0.00059999,120]
[320805533,1711561963041,-744.71,0.00059999,120]
[320805534,1711561963050,-3375.62,0.00059999,120]
[320805535,1711561963060,-1245.33,0.00059999,120]
[320805536,1711561963069,-825.22,0.00059999,120]
[320805537,1711561963078,-2499.0,0.00059999,120]
[320805538,1711561963087,-1139.82,0.00059999,120]
[320805539,1711561963096,-3390.46,0.00059999,120]
[320805540,1711561963106,-2297.82,0.00059999,120]
[320805541,1711561963115,-36215.98,0.00059999,120]
[320805542,1711561963125,-2115.9,0.00059999,120]
[320805543,1711561963134,-504.0,0.00059999,120]
[320805544,1711561963144,-635.43,0.00059999,120]
[320805545,1711561963153,-509.72,0.00059999,7]
[320805546,1711561963164,-1985.21,0.00059999,120]
[320805547,1711561963173,-4093.44,0.00059999,120]
[320805548,1711561963182,-598.33,0.00059999,120]
[320805549,1711561963192,-3703.02,0.00059999,120]
[320805550,1711561963201,-3170.6,0.00059999,120]
[320805551,1711561963210,-4518.78,0.00059999,120]
[320805552,1711561963220,-816.34,0.00059999,120]
[320805553,1711561963230,-550.58,0.00059999,120]
[320805554,1711561963239,-5597.96,0.00059999,120]
[320805555,1711561963249,-3365.42,0.00059999,120]
[320805556,1711561963258,-1850.45,0.00059999,120]
[320805557,1711561963267,-543.16,0.00059999,120]
[320805558,1711561963277,-1437.25,0.00059999,120]
[320805559,1711561963286,-13261.96,0.00059999,120]
[320805560,1711561963295,-2460.7,0.00059999,120]
[320805561,1711561963305,-688.55,0.00059999,120]
[320805562,1711561963315,-1308.22,0.00059999,120]
[320805563,1711561963325,-1655.41,0.00059999,120]
[320805564,1711561963334,-606.26,0.00059999,120]
[320805565,1711561963343,-3292.56,0.00059999,120]
[320805566,1711561963353,-2911.12,0.00059999,120]
[320805567,1711561963363,-4771.81,0.00059999,120]
[320805568,1711561963372,-1591.58,0.00059999,120]
[320805569,1711561963381,-8314.67,0.00059999,21]
[320805570,1711561963391,-515.6,0.00059999,120]
[320805571,1711561963401,-1246.89,0.00059999,120]
[320805572,1711561963416,-1689.16,0.00059999,120]
[320805573,1711561963425,-500.0,0.00059999,120]
[320805574,1711561963435,-770.25,0.00059999,120]
[320805575,1711561963444,-8380.88,0.00059999,120]
[320805576,1711561963454,-614.46,0.00059999,120]
[320805577,1711561963464,-2989.36,0.00059999,120]
[320805578,1711561963474,-521.47,0.00059999,120]
[320805579,1711561963483,-10959.62,0.00059999,120]
[320805580,1711561963494,-2645.1,0.00059999,120]
[320805581,1711561963505,-758.38,0.00059999,120]
[320805582,1711561963515,-12744.26,0.00059999,120]
[320805583,1711561963525,-228.8,0.00059999,120]
[320805584,1711561963535,-11517.5,0.00059999,120]
[320805585,1711561963546,-2628.59,0.00059999,120]
[320805586,1711561963555,-1981.45,0.00059999,120]
[320805587,1711561963565,-2618.9,0.00059999,120]
[320805588,1711561963575,-2635.65,0.00059999,120]
[320805589,1711561963584,-2440.72,0.00059999,120]
[320805590,1711561963593,-1641.2,0.00059999,120]
[320805591,1711561963603,-3000.0,0.00059999,120]
[320805592,1711561963612,-1422.66,0.00059999,120]
[320805593,1711561963623,-1953.26,0.00059999,120]
[320805594,1711561963633,-680.59,0.00059999,120]
[320805595,1711561963642,-851.11,0.00059999,120]
[320805596,1711561963652,-4524.02,0.00059999,120]
[320805597,1711561963667,-516.23,0.00059999,120]
[320805598,1711561963678,-833.36,0.00059999,120]
[320805599,1711561963688,-2147.51,0.00059999,120]
[320805600,1711561963699,-1200.4,0.00059999,120]
[320805601,1711561963709,-6977.94,0.00059999,120]
[320805602,1711561963720,-4994.03,0.00059999,120]
[320805603,1711561963731,-1826.97,0.00059999,120]
[320805604,1711561963742,-1042.58,0.00059999,120]
[320805605,1711561963753,-818.62,0.00059999,120]
[320805606,1711561963763,-1312.03,0.00059999,120]
[320805607,1711561963773,-1814.79,0.00059999,120]
[320805608,1711561963784,-1730.09,0.00059999,120]
[320805609,1711561963794,-3092.64,0.00059999,120]
[320805610,1711561963804,-3331.35,0.00059999,120]
[320805611,1711561963814,-1629.06,0.00059999,120]
[320805612,1711561963824,-858.06,0.00059999,120]
[320805613,1711561963834,-1107.56,0.00059999,120]
[320805614,1711561963843,-1926.96,0.00059999,120]
[320805615,1711561963853,-5998.21,0.00059999,120]
[320805616,1711561963863,-1276.61,0.00059999,120]
[320805617,1711561963874,-1204.74,0.00059999,120]
[320805618,1711561963888,-978.47,0.00059999,120]
[320805619,1711561963898,-1112.11,0.00059999,120]
[320805620,1711561963912,-500.0,0.00059999,120]
[320805621,1711561963922,-5147.59,0.00059999,120]
[320805622,1711561963932,-1278.89,0.00059999,120]
[320805623,1711561963942,-100000.0,0.0006,60]
[320805624,1711561963951,-517.66081564,0.0006,90]
[320805625,1711561963963,-3196.38912452,0.0006,90]
[320805626,1711561963973,-250.53855673,0.0006,120]
[320805627,1711561963982,-155.64218997,0.0006,120]
[320805628,1711561963992,-2701.0,0.0006,120]
[320805629,1711561964001,-1001.58541159,0.0006,120]
[320805630,1711561964010,-400.0,0.0006,7]
[320805631,1711561964019,-1000.0,0.0006,120]
[320805632,1711561964028,-646.0,0.0006,120]
[320805633,1711561964038,-646.0,0.0006,120]
[320805634,1711561964048,-646.0,0.0006,120]
[320805635,1711561964057,-646.0,0.0006,120]
[320805636,1711561964067,-646.0,0.0006,120]
[320805637,1711561964076,-646.0,0.0006,120]
[320805638,1711561964085,-646.0,0.0006,120]
[320805639,1711561964094,-646.0,0.0006,120]
[320805640,1711561964103,-646.0,0.0006,120]
[320805641,1711561964112,-646.0,0.0006,120]
[320805642,1711561964122,-600.0,0.0006,61]
[320805643,1711561964131,-500.0,0.0006,60]
[320805644,1711561964140,-500.0,0.0006,60]
[320805645,1711561964152,-500.0,0.0006,60]
[320805646,1711561964164,-500.0,0.0006,60]
[320805647,1711561964173,-500.0,0.0006,60]
[320805648,1711561964182,-500.0,0.0006,60]
[320805649,1711561964192,-500.0,0.0006,60]
[320805650,1711561964201,-500.0,0.0006,60]
[320805651,1711561964211,-500.0,0.0006,60]
[320805652,1711561964220,-500.0,0.0006,60]
[320805653,1711561964229,-500.0,0.0006,60]
[320805654,1711561964239,-595.0,0.0006,60]
[320805655,1711561964248,-10000.0,0.0006,4]
[320805656,1711561964258,-155.33594153,0.0006,60]
[320805657,1711561964267,-22152.0,0.0006,120]
[320805658,1711561964276,-5000.0,0.0006,120]
[320805659,1711561964285,-30000.0,0.0006,120]
[320805660,1711561964295,-30000.0,0.0006,120]
[320805661,1711561964304,-30000.0,0.0006,120]
[320805662,1711561964313,-3674.952685,0.0006,120]
[320805663,1711561964323,-988.84118584,0.0006,7]
[320805664,1711561964332,-500.00000099,0.0006,30]
[320805665,1711561964341,-8182.95491198,0.0006,120]
[320805666,1711561964351,-217.60367769,0.0006,30]
[320805667,1711561964360,-6169.82194741,0.0006,78]
[320805668,1711561964369,-522.53010782,0.0006,30]
[320805669,1711561964378,-2792.03451649,0.0006,75]
[320805670,1711561964387,-150.0,0.0006,120]
[320805671,1711561964397,-500.0,0.0006,62]
[320805672,1711561964409,-500.0,0.0006,62]
[320805673,1711561964418,-500.0,0.0006,62]
[320805674,1711561964428,-500.0,0.0006,62]
[320805675,1711561964437,-500.0,0.0006,62]
[320805676,1711561964447,-500.0,0.0006,72]
[320805677,1711561964456,-1002.5,0.0006,120]
[320805678,1711561964465,-304.76,0.0006,120]
[320805679,1711561964475,-150.0,0.00060007,120]
[320805680,1711561964484,-150.0,0.00060013,120]
[320805681,1711561964493,-5056.51492563,0.00060016,120]
[320805682,1711561964502,-2297.87115028,0.00060016,120]
[320805683,1711561964511,-745.54344938,0.00060016,120]
[320805684,1711561964520,-2121.19438282,0.00060016,120]
[320805685,1711561964530,-150.0,0.00060032,120]
[320805686,1711561964541,-215.77523179,0.00060033,120]
[320805687,1711561964551,-327.0,0.00060078,30]
[320805688,1711561964560,-415.0,0.00060078,30]
[320805689,1711561964569,-500.0,0.000601,120]
[320805690,1711561964579,-215.77523179,0.000601,120]
[320805691,1711561964588,-150.0,0.00060128,120]
[320805692,1711561964597,-513.08189374,0.0006015,120]
[320805693,1711561964607,-150.0,0.00060165,120]
[320805694,1711561964617,-215.77523179,0.00060168,120]
[320805695,1711561964626,-150.0,0.00060168,120]
[320805696,1711561964636,-151.032721,0.00060198,119]
[320805697,1711561964646,-215.77523179,0.00060235,120]
[320805698,1711561964656,-150.0,0.00060243,120]
[320805699,1711561964666,-200.25,0.00060258,120]
[320805700,1711561964676,-265.66918693,0.00060272,30]
[320805701,1711561964686,-522.2,0.00060273,120]
[320805702,1711561964695,-631.01,0.00060273,120]
[320805703,1711561964705,-530.38,0.00060273,120]
[320805704,1711561964714,-517.87,0.00060273,120]
[320805705,1711561964724,-736.48,0.00060273,120]
[320805706,1711561964733,-500.0,0.00060273,120]
[320805707,1711561964743,-827.53,0.00060273,120]
[320805708,1711561964752,-1149.15,0.00060273,120]
[320805709,1711561964762,-683.71,0.00060273,120]
[320805710,1711561964771,-588.63,0.00060273,120]
[320805711,1711561964780,-1653.05,0.00060273,120]
[320805712,1711561964791,-721.85,0.00060273,120]
[320805713,1711561964802,-1272.4,0.00060273,120]
[320805714,1711561964812,-758.1,0.00060273,120]
[320805715,1711561964822,-751.34,0.00060273,120]
[320805716,1711561964832,-1106.66,0.00060273,120]
[320805717,1711561964842,-667.72,0.00060273,120]
[320805718,1711561964852,-546.53,0.00060273,120]
[320805719,1711561964862,-525.52,0.00060273,120]
[320805720,1711561964874,-1650.28,0.00060273,120]
[320805721,1711561964888,-1208.64,0.00060273,120]
[320805722,1711561964900,-1675.07,0.00060273,120]
[320805723,1711561964916,-875.05,0.00060273,120]
[320805724,1711561964926,-896.37,0.00060273,120]
[320805725,1711561964936,-526.04,0.00060273,120]
[320805726,1711561964947,-774.53,0.00060273,120]
[320805727,1711561964958,-623.96,0.00060273,120]
[320805728,1711561964970,-1500.57,0.00060273,120]
[320805729,1711561964980,-1293.46,0.00060273,120]
[320805730,1711561964991,-663.1,0.00060273,120]
[320805731,1711561965001,-591.57,0.00060273,120]
[320805732,1711561965012,-540.2,0.00060273,120]
[320805733,1711561965022,-826.04,0.00060273,120]
[320805734,1711561965032,-802.7,0.00060273,120]
[320805735,1711561965042,-551.8,0.00060273,120]
[320805736,1711561965051,-792.47,0.00060273,120]
[320805737,1711561965061,-507.03,0.00060273,120]
[320805738,1711561965070,-814.62,0.00060273,120]
[320805739,1711561965080,-519.12,0.00060273,120]
[320805740,1711561965091,-553.94,0.00060273,120]
[320805741,1711561965102,-1363.26,0.00060273,120]
[320805742,1711561965113,-681.15,0.00060273,120]
[320805743,1711561965123,-1247.0,0.00060273,120]
[320805744,1711561965134,-828.0,0.00060273,120]
[320805745,1711561965145,-691.03,0.00060273,120]
[320805746,1711561965161,-907.95,0.00060273,120]
[320805747,1711561965172,-1943.45,0.00060273,120]
[320805748,1711561965183,-1363.72,0.00060273,120]
[320805749,1711561965194,-1264.66,0.00060273,120]
[320805750,1711561965205,-518.11,0.00060273,120]
[320805751,1711561965215,-785.6,0.00060273,120]
[320805752,1711561965226,-533.96,0.00060273,120]
[320805753,1711561965236,-610.76,0.00060273,120]
[320805754,1711561965245,-601.27,0.00060273,120]
[320805755,1711561965255,-619.35,0.00060273,120]
[320805756,1711561965264,-723.32,0.00060273,120]
[320805757,1711561965274,-658.94,0.00060273,30]
[320805758,1711561965284,-604.53,0.00060273,120]
[320805759,1711561965294,-627.6,0.00060273,120]
[320805760,1711561965303,-541.49,0.00060273,120]
[320805761,1711561965313,-525.41,0.00060273,120]
[320805762,1711561965322,-1259.13,0.00060273,120]
[320805763,1711561965332,-294.39005492,0.00060273,120]
[320805764,1711561965341,-961.87,0.00060273,120]
[320805765,1711561965351,-1118.41,0.00060273,120]
[320805766,1711561965361,-1285.86,0.00060273,120]
[320805767,1711561965370,-653.33,0.00060273,120]
[320805768,1711561965458,-515.61,0.00060273,120]
[320805769,1711561965469,-881.34,0.00060273,120]
[320805770,1711561965478,-594.96,0.00060273,120]
[320805771,1711561965488,-635.55,0.00060273,120]
[320805772,1711561965497,-569.07,0.00060273,120]
[320805773,1711561965507,-513.81,0.00060273,120]
[320805774,1711561965516,-885.2,0.00060273,120]
[320805775,1711561965526,-507.05,0.00060273,120]
[320805776,1711561965536,-345.9,0.00060273,120]
[320805777,1711561965545,-969.37,0.00060273,120]
[320805778,1711561965555,-712.96,0.00060273,120]
[320805779,1711561965564,-607.67,0.00060273,120]
[320805780,1711561965574,-631.34,0.00060273,120]
[320805781,1711561965583,-321.63909815,0.00060273,120]
[320805782,1711561965592,-572.09,0.00060273,120]
[320805783,1711561965601,-633.56,0.00060273,120]
[320805784,1711561965610,-1276.08,0.00060273,120]
[320805785,1711561965620,-743.04,0.00060273,120]
[320805786,1711561965630,-994.38,0.00060273,120]
[320805787,1711561965640,-1464.37,0.00060273,120]
[320805788,1711561965650,-1308.17,0.00060273,120]
[320805789,1711561965659,-1966.83,0.00060273,120]
[320805790,1711561965669,-1167.58,0.00060273,120]
[320805791,1711561965679,-882.23,0.00060273,120]
[320805792,1711561965688,-500.0,0.00060273,120]
[320805793,1711561965698,-939.99,0.00060273,120]
[320805794,1711561965707,-1680.42,0.00060273,120]
[320805795,1711561965716,-654.45,0.00060273,120]
[320805796,1711561965725,-1090.78,0.00060273,120]
[320805797,1711561965735,-2767.8,0.00060273,120]
[320805798,1711561965744,-5693.99,0.00060273,120]
[320805799,1711561965753,-631.11,0.00060273,120]
[320805800,1711561965762,-638.94,0.00060273,120]
[320805801,1711561965771,-1880.06,0.00060273,120]
[320805802,1711561965780,-1154.81,0.00060273,120]
[320805803,1711561965790,-3576.66,0.00060273,120]
[320805804,1711561965799,-597.69,0.00060273,120]
[320805805,1711561965809,-500.0,0.00060273,120]
[320805806,1711561965819,-11680.99,0.00060273,120]